lending/lending_fUSD_20240710
["ID","MTS","AMOUNT","RATE_DAILY","PERIOD"]
[331657102,1720607436952,-500.0,0.00013698,2]
[331657103,1720607436962,-606.96,0.00013698,2]
[331657104,1720607436974,-500.0,0.00013698,2]
[331657105,1720607436983,-1019.22,0.00013698,2]
[331657106,1720607436991,-500.0,0.00013698,2]
[331657107,1720607437000,-500.0,0.00013698,2]
[331657108,1720607437009,-500.0,0.00013698,2]
[331657109,1720607437018,-625.29,0.00013698,2]
[331657110,1720607437027,-557.47926611,0.00013698,2]
[331657111,1720607437035,-593.07,0.00013698,2]
[331657112,1720607437044,-500.0,0.00013698,2]
[331657113,1720607437054,-500.0,0.00013698,2]
[331657114,1720607437063,-500.0,0.00013698,2]
[331657115,1720607437072,-500.0,0.00013698,2]
[331657116,1720607437081,-500.0,0.00013698,2]
[331657117,1720607437090,-567.02,0.00013698,2]
[331657118,1720607437099,-500.0,0.00013698,2]
[331657119,1720607437109,-500.0,0.00013698,2]
[331657120,1720607437118,-500.0,0.00013698,2]
[331657121,1720607437127,-500.0,0.00013698,2]
[331657122,1720607437136,-860.65,0.00013698,2]
[331657123,1720607437146,-500.0,0.00013698,2]
[331657124,1720607437155,-500.0,0.00013698,2]
[331657125,1720607437165,-856.16,0.00013698,2]
[331657126,1720607437175,-500.0,0.00013698,2]
[331657127,1720607437184,-625.69,0.00013698,2]
[331657128,1720607437192,-964.77,0.00013698,2]
[331657129,1720607437202,-620.27808506,0.00013698,2]
[331657130,1720607437213,-537.15,0.00013698,2]
[331657131,1720607437222,-500.0,0.00013698,2]
[331657132,1720607437231,-587.67,0.00013698,2]
[331657133,1720607437241,-500.0,0.00013698,2]
[331657134,1720607437250,-500.0,0.00013698,2]
[331657135,1720607437259,-500.0,0.00013698,2]
[331657136,1720607437270,-720.4,0.00013698,2]
[331657137,1720607437280,-500.0,0.00013698,2]
[331657138,1720607437290,-500.0,0.00013698,2]
[331657139,1720607437299,-391.60937159,0.00013698,2]
[331657140,1720607437308,-500.0,0.00013698,2]
[331657141,1720607437317,-503.48,0.00013698,2]
[331657142,1720607437326,-500.0,0.00013698,2]
[331657143,1720607437336,-500.0,0.00013698,2]
[331657144,1720607437345,-500.0,0.00013698,2]
[331657145,1720607437355,-549.87,0.00013698,2]
[331657146,1720607437365,-659.82,0.00013698,2]
[331657147,1720607437375,-500.0,0.00013698,2]
[331657148,1720607437384,-500.0,0.00013698,2]
[331657149,1720607437393,-500.0,0.00013698,2]
[331657150,1720607437403,-697.16,0.00013698,2]
[331657151,1720607437412,-542.07,0.00013698,2]
[331657152,1720607437421,-639.74,0.00013698,2]
[331657153,1720607437431,-500.0,0.00013698,2]
[331657154,1720607437441,-746.15,0.00013698,2]
[331657155,1720607437450,-500.0,0.00013698,2]
[331657156,1720607437459,-500.0,0.00013698,2]
[331657157,1720607437473,-574.76,0.00013698,2]
[331657158,1720607437482,-500.0,0.00013698,2]
[331657159,1720607437492,-500.0,0.00013698,2]
[331657160,1720607437501,-500.0,0.00013698,2]
[331657161,1720607437510,-500.0,0.00013698,2]
[331657162,1720607437520,-531.01,0.00013698,2]
[331657163,1720607437529,-500.0,0.00013698,2]
[331657164,1720607437539,-830.24,0.00013698,2]
[331657165,1720607437548,-816.77,0.00013698,2]
[331657166,1720607437557,-352.42068999,0.00013698,2]
[331657167,1720607437568,-1571.3,0.00013698,2]
[331657168,1720607437577,-508.87,0.00013698,2]
[331657169,1720607437586,-1335.28,0.00013698,2]
[331657170,1720607437595,-500.0,0.00013698,2]
[331657171,1720607437605,-694.67,0.00013698,2]
[331657172,1720607437614,-500.0,0.00013698,2]
[331657173,1720607437624,-994.3,0.00013698,2]
[331657174,1720607437633,-500.0,0.00013698,2]
[331657175,1720607437643,-500.0,0.00013698,2]
[331657176,1720607437652,-500.0,0.00013698,2]
[331657178,1720607437661,-500.0,0.00013698,2]
[331657179,1720607437671,-500.0,0.00013698,2]
[331657180,1720607437680,-500.0,0.00013698,2]
[331657181,1720607437690,-649.53,0.00013698,2]
[331657182,1720607437699,-500.0,0.00013698,2]
[331657183,1720607437708,-500.0,0.00013698,2]
[331657184,1720607437720,-500.0,0.00013698,2]
[331657185,1720607437729,-220.59098021,0.00013698,2]
[331657186,1720607437738,-556.1,0.00013698,2]
[331657187,1720607437750,-653.84,0.00013698,2]
[331657188,1720607437761,-572.83,0.00013698,2]
[331657189,1720607437773,-612.8,0.00013698,2]
[331657190,1720607437786,-500.0,0.00013698,2]
[331657191,1720607437798,-500.0,0.00013698,2]
[331657192,1720607437809,-526.51,0.00013698,2]
[331657193,1720607437821,-500.0,0.00013698,2]
[331657194,1720607437832,-949.66,0.00013698,2]
[331657195,1720607437844,-500.0,0.00013698,2]
[331657196,1720607437855,-500.0,0.00013698,2]
[331657197,1720607437865,-500.0,0.00013698,2]
[331657198,1720607437875,-500.0,0.00013698,2]
[331657199,1720607437886,-500.0,0.00013698,2]
[331657200,1720607437898,-500.0,0.00013698,2]
[331657201,1720607437909,-592.88,0.00013698,2]
[331657202,1720607437920,-500.0,0.00013698,2]
[331657203,1720607437930,-500.0,0.00013698,2]
[331657204,1720607437941,-852.22,0.00013698,2]
[331657205,1720607437951,-500.0,0.00013698,2]
[331657206,1720607437963,-500.0,0.00013698,2]
[331657207,1720607437974,-525.06,0.00013698,2]
[331657208,1720607437985,-3622.38,0.00013698,2]
[331657209,1720607437996,-500.0,0.00013698,2]
[331657210,1720607438008,-696.85,0.00013698,2]
[331657211,1720607438019,-500.0,0.00013698,2]
[331657212,1720607438030,-500.0,0.00013698,2]
[331657213,1720607438041,-500.0,0.00013698,2]
[331657214,1720607438054,-500.0,0.00013698,2]
[331657215,1720607438067,-500.0,0.00013698,2]
[331657216,1720607438079,-500.0,0.00013698,2]
[331657218,1720607438091,-544.45,0.00013698,2]
[331657220,1720607438103,-760.7,0.00013698,2]
[331657222,1720607438114,-500.0,0.00013698,2]
[331657223,1720607438125,-500.0,0.00013698,2]
[331657224,1720607438136,-500.0,0.00013698,2]
[331657225,1720607438147,-500.0,0.00013698,2]
[331657226,1720607438158,-500.0,0.00013698,2]
[331657227,1720607438170,-882.92,0.00013698,2]
[331657228,1720607438180,-500.0,0.00013698,2]
[331657229,1720607438191,-967.46,0.00013698,2]
[331657230,1720607438202,-422.23915134,0.00013698,2]
[331657231,1720607438212,-500.0,0.00013698,2]
[331657232,1720607438224,-500.0,0.00013698,2]
[331657233,1720607438236,-751.17,0.00013698,2]
[331657234,1720607438247,-500.0,0.00013698,2]
[331657235,1720607438260,-500.0,0.00013698,2]
[331657236,1720607438272,-500.0,0.00013698,2]
[331657237,1720607438284,-500.0,0.00013698,2]
[331657238,1720607438295,-634.9,0.00013698,2]
[331657239,1720607438306,-624.58,0.00013698,2]
[331657240,1720607438317,-600.35,0.00013698,2]
[331657241,1720607438327,-500.0,0.00013698,2]
[331657242,1720607438338,-797.7,0.00013698,2]
[331657243,1720607438348,-500.0,0.00013698,2]
[331657244,1720607438359,-500.0,0.00013698,2]
[331657245,1720607438372,-821.13,0.00013698,2]
[331657246,1720607438383,-500.0,0.00013698,2]
[331657247,1720607438395,-1973.42,0.00013698,2]
[331657248,1720607438406,-500.0,0.00013698,2]
[331657249,1720607438417,-2150.6,0.00013698,2]
[331657250,1720607438428,-500.0,0.00013698,2]
[331657251,1720607438440,-500.0,0.00013698,2]
[331657252,1720607438452,-500.0,0.00013698,2]
[331657253,1720607438463,-500.0,0.00013698,2]
[331657254,1720607438475,-500.0,0.00013698,2]
[331657255,1720607438487,-1011.9,0.00013698,2]
[331657256,1720607438500,-902.73,0.00013698,2]
[331657257,1720607438512,-500.0,0.00013698,2]
[331657258,1720607438523,-500.0,0.00013698,2]
[331657259,1720607438535,-500.0,0.00013698,2]
[331657260,1720607438547,-1788.44,0.00013698,2]
[331657261,1720607438559,-500.0,0.00013698,2]
[331657262,1720607438571,-653.72,0.00013698,2]
[331657263,1720607438582,-1544.77,0.00013698,2]
[331657264,1720607438593,-500.0,0.00013698,2]
[331657265,1720607438604,-500.0,0.00013698,2]
[331657266,1720607438615,-500.0,0.00013698,2]
[331657267,1720607438626,-1364.43,0.00013698,2]
[331657269,1720607438637,-500.0,0.00013698,2]
[331657271,1720607438648,-624.43,0.00013698,2]
[331657273,1720607438659,-944.92,0.00013698,2]
[331657275,1720607438670,-700.19,0.00013698,2]
[331657277,1720607438682,-500.0,0.00013698,2]
[331657279,1720607438694,-500.0,0.00013698,2]
[331657282,1720607438706,-927.16,0.00013698,2]
[331657284,1720607438719,-500.0,0.00013698,2]
[331657286,1720607438731,-600.94,0.00013698,2]
[331657288,1720607438743,-500.0,0.00013698,2]
[331657291,1720607438756,-500.0,0.00013698,2]
[331657293,1720607438767,-592.59,0.00013698,2]
[331657295,1720607438778,-500.0,0.00013698,2]
[331657297,1720607438789,-3411.46,0.00013698,2]
[331657299,1720607438800,-517.84,0.00013698,2]
[331657301,1720607438810,-500.0,0.00013698,2]
[331657303,1720607438822,-500.0,0.00013698,2]
[331657305,1720607438832,-593.31,0.00013698,2]
[331657307,1720607438843,-500.0,0.00013698,2]
[331657309,1720607438855,-1862.28,0.00013698,2]
[331657311,1720607438866,-500.0,0.00013698,2]
[331657314,1720607438878,-500.0,0.00013698,2]
[331657316,1720607438889,-584.35,0.00013698,2]
[331657318,1720607438899,-500.0,0.00013698,2]
[331657320,1720607438910,-500.0,0.00013698,2]
[331657322,1720607438921,-590.8,0.00013698,2]
[331657324,1720607438932,-500.0,0.00013698,2]
[331657326,1720607438943,-785.48,0.00013698,2]
[331657328,1720607438954,-535.28,0.00013698,2]
[331657330,1720607438967,-791.85,0.00013698,2]
[331657332,1720607438978,-500.0,0.00013698,2]
[331657334,1720607438989,-899.0,0.00013698,2]
[331657337,1720607439001,-500.0,0.00013698,2]
[331657339,1720607439013,-500.0,0.00013698,2]
[331657341,1720607439024,-500.0,0.00013698,2]
[331657343,1720607439034,-500.0,0.00013698,2]
[331657345,1720607439045,-500.0,0.00013698,2]
[331657347,1720607439057,-500.0,0.00013698,2]
[331657349,1720607439067,-500.0,0.00013698,2]
[331657351,1720607439078,-901.21,0.00013698,2]
[331657353,1720607439089,-556.0346361,0.00013698,2]
[331657356,1720607439100,-500.0,0.00013698,2]
[331657358,1720607439110,-566.8,0.00013698,2]
[331657360,1720607439122,-861.38,0.00013698,2]
[331657362,1720607439133,-500.0,0.00013698,2]
[331657364,1720607439143,-500.0,0.00013698,2]
[331657366,1720607439154,-738.29,0.00013698,2]
[331657368,1720607439165,-500.0,0.00013698,2]
[331657370,1720607439176,-546.76,0.00013698,2]
[331657372,1720607439187,-500.0,0.00013698,2]
[331657374,1720607439198,-500.0,0.00013698,2]
[331657376,1720607439208,-1235.33,0.00013698,2]
[331657378,1720607439219,-500.0,0.00013698,2]
[331657380,1720607439229,-814.57,0.00013698,2]
[331657382,1720607439240,-299.8728388,0.00013698,2]
[331657385,1720607439252,-500.0,0.00013698,2]
[331657387,1720607439263,-500.0,0.00013698,2]
[331657389,1720607439276,-500.0,0.00013698,2]
[331657391,1720607439289,-612.37,0.00013698,2]
[331657393,1720607439300,-500.0,0.00013698,2]
[331657395,1720607439312,-1071.29,0.00013698,2]
[331657397,1720607439322,-545.21,0.00013698,2]
[331657399,1720607439334,-500.0,0.00013698,2]
[331657401,1720607439345,-651.83,0.00013698,2]
[331657404,1720607439357,-500.0,0.00013698,2]
[331657406,1720607439368,-500.0,0.00013698,2]
[331657408,1720607439381,-721.86,0.00013698,2]
[331657410,1720607439393,-503.53,0.00013698,2]
[331657485,1720607440279,-603.85,0.00013698,2]
[331657489,1720607440307,-500.0,0.00013698,2]
[331657491,1720607440322,-1117.22,0.00013698,2]
[331657493,1720607440332,-1294.61,0.00013698,2]
[331657496,1720607440342,-500.0,0.00013698,2]
[331657498,1720607440352,-500.0,0.00013698,2]
[331657500,1720607440362,-500.0,0.00013698,2]
[331657502,1720607440375,-500.0,0.00013698,2]
[331657504,1720607440384,-500.0,0.00013698,2]
[331657506,1720607440394,-500.0,0.00013698,2]
[331657508,1720607440404,-500.0,0.00013698,2]
[331657510,1720607440414,-945.2,0.00013698,2]
[331657512,1720607440424,-500.0,0.00013698,2]
[331657514,1720607440433,-680.23,0.00013698,2]
[331657516,1720607440443,-500.0,0.00013698,2]
[331657518,1720607440453,-857.81,0.00013698,2]
[331657520,1720607440463,-500.0,0.00013698,2]
[331657522,1720607440473,-500.0,0.00013698,2]
[331657524,1720607440483,-667.08,0.00013698,2]
[331657526,1720607440493,-500.0,0.00013698,2]
[331657528,1720607440504,-500.0,0.00013698,2]
[331657530,1720607440514,-500.0,0.00013698,2]
[331657532,1720607440524,-653.37,0.00013698,2]
[331657534,1720607440534,-500.0,0.00013698,2]
[331657536,1720607440544,-500.0,0.00013698,2]
[331657538,1720607440554,-500.0,0.00013698,2]
[331657540,1720607440564,-500.0,0.00013698,2]
[331657542,1720607440574,-571.43,0.00013698,2]
[331657544,1720607440584,-1030.08,0.00013698,2]
[331657546,1720607440594,-6010.16,0.00013698,2]
[331657548,1720607440604,-500.0,0.00013698,2]
[331657550,1720607440614,-500.0,0.00013698,2]
[331657552,1720607440624,-1090.35,0.00013698,2]
[331657554,1720607440633,-500.0,0.00013698,2]
[331657556,1720607440643,-810.52,0.00013698,2]
[331657558,1720607440653,-725.92,0.00013698,2]
[331657560,1720607440664,-500.0,0.00013698,2]
[331657562,1720607440674,-500.0,0.00013698,2]
[331657564,1720607440684,-500.0,0.00013698,2]
[331657566,1720607440694,-500.0,0.00013698,2]
[331657568,1720607440704,-978.74,0.00013698,2]
[331657570,1720607440714,-500.0,0.00013698,2]
[331657571,1720607440724,-92.74444696,0.00013698,2]
[331657575,1720607441145,-407.25555304,0.00013698,2]
[331657577,1720607441154,-500.0,0.00013698,2]
[331657579,1720607441164,-273.09369218,0.00013698,2]
[331657581,1720607441176,-226.90630782,0.00013698,2]
[331657582,1720607441185,-500.0,0.00013698,2]
[331657583,1720607441196,-500.0,0.00013698,2]
[331657584,1720607441206,-1125.49,0.00013698,2]
[331657585,1720607441218,-500.0,0.00013698,2]
[331657586,1720607441227,-500.0,0.00013698,2]
[331657587,1720607441238,-500.0,0.00013698,2]
[331657588,1720607441248,-500.0,0.00013698,2]
[331657589,1720607441258,-707.13,0.00013698,2]
[331657590,1720607441269,-605.9,0.00013698,2]
[331657591,1720607441280,-500.0,0.00013698,2]
[331657592,1720607441290,-500.0,0.00013698,2]
[331657593,1720607441300,-2593.78,0.00013699,2]
[331657594,1720607441310,-200.0,0.00013699,2]
[331657595,1720607441319,-250.0,0.00013699,2]
[331657596,1720607441329,-1065.44,0.00013699,2]
[331657597,1720607441339,-1919.67,0.00013699,2]
[331657598,1720607441348,-2751.0,0.00013699,2]
[331657599,1720607441358,-150.0,0.00013705,2]
[331657600,1720607441369,-179.04972536,0.00013708,2]
[331657601,1720607441379,-922.46693,0.0001372,2]
[331657602,1720607441389,-12780.12103869,0.00013736,2]
[331657603,1720607441398,-800.0,0.00013743,2]
[331657604,1720607441408,-150.0,0.00013749,2]
[331657605,1720607441419,-150.0,0.0001375,2]
[331657606,1720607441430,-178.44393283,0.00013752,2]
[331657607,1720607441440,-500.0,0.00013753,2]
[331657608,1720607441451,-500.0,0.00013753,2]
[331657609,1720607441461,-500.0,0.00013753,2]
[331657610,1720607441473,-500.0,0.00013753,2]
[331657611,1720607441483,-500.0,0.00013753,2]
[331657612,1720607441493,-500.0,0.00013753,2]
[331657613,1720607441503,-595.1,0.00013753,2]
[331657614,1720607441512,-500.0,0.00013753,2]
[331657615,1720607441522,-500.0,0.00013753,2]
[331657616,1720607441531,-500.0,0.00013753,2]
[331657617,1720607441541,-500.0,0.00013753,2]
[331657618,1720607441551,-500.0,0.00013753,2]
[331657619,1720607441560,-557.47,0.00013753,2]
[331657620,1720607441570,-500.0,0.00013753,2]
[331657621,1720607441579,-511.68,0.00013753,2]
[331657622,1720607441589,-500.0,0.00013753,2]
[331657623,1720607441600,-500.0,0.00013753,2]
[331657624,1720607441610,-500.0,0.00013753,2]
[331657625,1720607441620,-500.0,0.00013753,2]
[331657626,1720607441630,-500.0,0.00013753,2]
[331657627,1720607441640,-636.59,0.00013753,2]
[331657628,1720607441650,-500.0,0.00013753,2]
[331657629,1720607441660,-500.0,0.00013753,2]
[331657630,1720607441671,-500.0,0.00013753,2]
[331657631,1720607441681,-519.63585486,0.00013753,2]
[331657632,1720607441691,-278.56079242,0.00013753,2]
[331657633,1720607441700,-500.0,0.00013753,2]
[331657634,1720607441710,-500.0,0.00013753,2]
[331657635,1720607441721,-500.0,0.00013753,2]
[331657636,1720607441730,-500.0,0.00013753,2]
[331657637,1720607441740,-500.0,0.00013753,2]
[331657638,1720607441751,-500.0,0.00013753,2]
[331657639,1720607441762,-500.0,0.00013753,2]
[331657640,1720607441772,-500.0,0.00013753,2]
[331657641,1720607441783,-500.0,0.00013753,2]
[331657642,1720607441792,-500.0,0.00013753,2]
[331657643,1720607441802,-500.0,0.00013753,2]
[331657644,1720607441813,-500.0,0.00013753,2]
[331657645,1720607441824,-500.0,0.00013753,2]
[331657646,1720607441834,-315.94138051,0.00013753,2]
[331657647,1720607441844,-583.36,0.00013753,2]
[331657648,1720607441854,-500.0,0.00013753,2]
[331657649,1720607441863,-500.0,0.00013753,2]
[331657650,1720607441874,-521.18,0.00013753,2]
[331657651,1720607441883,-500.0,0.00013753,2]
[331657652,1720607441893,-500.0,0.00013753,2]
[331657653,1720607441903,-500.0,0.00013753,2]
[331657654,1720607441912,-500.0,0.00013753,2]
[331657655,1720607441922,-500.0,0.00013753,2]
[331657656,1720607441931,-500.0,0.00013753,2]
[331657657,1720607441940,-500.0,0.00013753,2]
[331657658,1720607441950,-500.0,0.00013753,2]
[331657659,1720607441959,-500.0,0.00013753,2]
[331657660,1720607441969,-500.0,0.00013753,2]
[331657661,1720607441979,-500.0,0.00013753,2]
[331657662,1720607441989,-500.0,0.00013753,2]
[331657663,1720607441999,-500.0,0.00013753,2]
[331657664,1720607442009,-500.0,0.00013753,2]
[331657665,1720607442019,-500.0,0.00013753,2]
[331657666,1720607442028,-500.0,0.00013753,2]
[331657667,1720607442038,-500.0,0.00013753,2]
[331657668,1720607442048,-500.0,0.00013753,2]
[331657669,1720607442057,-500.0,0.00013753,2]
[331657670,1720607442067,-500.0,0.00013753,2]
[331657671,1720607442076,-264.06977178,0.00013753,2]
[331657672,1720607442086,-403.75187219,0.00013753,2]
[331657673,1720607442095,-740.95,0.00013753,2]
[331657674,1720607442105,-579.6971942,0.00013753,2]
[331657675,1720607442115,-500.0,0.00013753,2]
[331657676,1720607442124,-500.0,0.00013753,2]
[331657677,1720607442134,-500.0,0.00013753,2]
[331657678,1720607442144,-500.0,0.00013753,2]
[331657679,1720607442153,-500.0,0.00013753,2]
[331657680,1720607442162,-500.0,0.00013753,2]
[331657681,1720607442171,-500.0,0.00013753,2]
[331657682,1720607442181,-500.0,0.00013753,2]
[331657683,1720607442190,-500.0,0.00013753,2]
[331657684,1720607442199,-500.0,0.00013753,2]
[331657685,1720607442208,-566.01228535,0.00013753,2]
[331657686,1720607442219,-500.0,0.00013753,2]
[331657687,1720607442228,-500.0,0.00013753,2]
[331657688,1720607442238,-500.0,0.00013753,2]
[331657689,1720607442247,-500.0,0.00013753,2]
[331657690,1720607442257,-500.0,0.00013753,2]
[331657691,1720607442267,-500.0,0.00013753,2]
[331657692,1720607442277,-500.0,0.00013753,2]
[331657693,1720607442287,-595.45,0.00013753,2]
[331657694,1720607442297,-500.0,0.00013753,2]
[331657695,1720607442306,-418.08236701,0.00013753,2]
[331657696,1720607442316,-574.15,0.00013753,2]
[331657697,1720607442325,-403.4615413,0.00013753,2]
[331657698,1720607442335,-500.0,0.00013753,2]
[331657699,1720607442344,-500.0,0.00013753,2]
[331657700,1720607442354,-500.0,0.00013753,2]
[331657701,1720607442363,-500.0,0.00013753,2]
[331657702,1720607442377,-500.0,0.00013753,2]
[331657703,1720607442386,-636.52489788,0.00013753,2]
[331657704,1720607442396,-500.0,0.00013753,2]
[331657705,1720607442406,-500.0,0.00013753,2]
[331657706,1720607442418,-500.0,0.00013753,2]
[331657707,1720607442429,-500.0,0.00013753,2]
[331657708,1720607442438,-566.5,0.00013753,2]
[331657709,1720607442448,-500.0,0.00013753,2]
[331657710,1720607442458,-500.0,0.00013753,2]
[331657711,1720607442469,-500.0,0.00013753,2]
[331657712,1720607442479,-500.0,0.00013753,2]
[331657713,1720607442488,-500.0,0.00013753,2]
[331657714,1720607442603,-500.0,0.00013753,2]
[331657715,1720607442614,-500.0,0.00013753,2]
[331657716,1720607442624,-500.0,0.00013753,2]
[331657717,1720607442634,-530.87,0.00013753,2]
[331657718,1720607442644,-500.0,0.00013753,2]
[331657719,1720607442653,-500.0,0.00013753,2]
[331657720,1720607442663,-593.14,0.00013753,2]
[331657721,1720607442672,-500.0,0.00013753,2]
[331657722,1720607442682,-500.0,0.00013753,2]
[331657723,1720607442692,-500.0,0.00013753,2]
[331657724,1720607442702,-568.29,0.00013753,2]
[331657725,1720607442711,-500.0,0.00013753,2]
[331657727,1720607442722,-500.0,0.00013753,2]
[331657729,1720607442731,-680.38,0.00013753,2]
[331657731,1720607442740,-505.98,0.00013753,2]
[331657732,1720607442750,-500.0,0.00013753,2]
[331657734,1720607442759,-500.0,0.00013753,2]
[331657736,1720607442768,-500.0,0.00013753,2]
[331657738,1720607442778,-681.82,0.00013753,2]
[331657741,1720607442792,-500.0,0.00013753,2]
[331657744,1720607442802,-550.15,0.00013753,2]
[331657747,1720607442811,-543.12,0.00013753,2]
[331657748,1720607442821,-239.45358974,0.00013753,2]
[331657750,1720607442831,-500.0,0.00013753,2]
[331657752,1720607442840,-500.0,0.00013753,2]
[331657753,1720607442850,-500.0,0.00013753,2]
[331657755,1720607442859,-500.0,0.00013753,2]
[331657757,1720607442868,-500.0,0.00013753,2]
[331657759,1720607442878,-500.0,0.00013753,2]
[331657760,1720607442888,-500.0,0.00013753,2]
[331657762,1720607442898,-500.0,0.00013753,2]
[331657764,1720607442908,-500.0,0.00013753,2]
[331657765,1720607442918,-500.0,0.00013753,2]
[331657767,1720607442929,-500.0,0.00013753,2]
[331657771,1720607442939,-500.0,0.00013753,2]
[331657774,1720607442948,-500.0,0.00013753,2]
[331657778,1720607442958,-526.39,0.00013753,2]
[331657781,1720607442968,-500.0,0.00013753,2]
[331657783,1720607442977,-500.0,0.00013753,2]
[331657785,1720607442987,-638.22,0.00013753,2]
[331657787,1720607442997,-500.0,0.00013753,2]
[331657789,1720607443008,-500.0,0.00013753,2]
[331657790,1720607443019,-500.0,0.00013753,2]
[331657792,1720607443029,-500.0,0.00013753,2]
[331657793,1720607443038,-500.0,0.00013753,2]
[331657795,1720607443048,-500.0,0.00013753,2]
[331657796,1720607443058,-500.0,0.00013753,2]
[331657798,1720607443073,-751.25,0.00013753,2]
[331657800,1720607443083,-500.0,0.00013753,2]
[331657802,1720607443093,-1356.37,0.00013753,2]
[331657804,1720607443102,-500.0,0.00013753,2]
[331657805,1720607443111,-500.0,0.00013753,2]
[331657807,1720607443121,-658.86,0.00013753,2]
[331657809,1720607443131,-500.0,0.00013753,2]
[331657810,1720607443141,-906.62,0.00013753,2]
[331657812,1720607443151,-711.58,0.00013753,2]
[331657814,1720607443160,-500.0,0.00013753,2]
[331657815,1720607443170,-500.0,0.00013753,2]
[331657817,1720607443180,-500.0,0.00013753,2]
[331657819,1720607443191,-500.0,0.00013753,2]
[331657821,1720607443201,-500.0,0.00013753,2]
[331657822,1720607443211,-756.17,0.00013753,2]
[331657824,1720607443223,-555.73,0.00013753,2]
[331657826,1720607443232,-500.0,0.00013753,2]
[331657828,1720607443242,-500.0,0.00013753,2]
[331657829,1720607443253,-500.0,0.00013753,2]
[331657831,1720607443263,-500.0,0.00013753,2]
[331657833,1720607443273,-572.3,0.00013753,2]
[331657835,1720607443288,-921.58,0.00013753,2]
[331657837,1720607443300,-897.6,0.00013753,2]
[331657838,1720607443310,-500.0,0.00013753,2]
[331657839,1720607443320,-500.0,0.00013753,2]
[331657840,1720607443329,-500.0,0.00013753,2]
[331657841,1720607443340,-500.0,0.00013753,2]
[331657842,1720607443350,-500.0,0.00013753,2]
[331657843,1720607443362,-500.0,0.00013753,2]
[331657845,1720607443374,-500.0,0.00013753,2]
[331657847,1720607443385,-668.21,0.00013753,2]
[331657849,1720607443395,-511.66,0.00013753,2]
[331657851,1720607443405,-837.51,0.00013753,2]
[331657854,1720607443416,-533.44,0.00013753,2]
[331657856,1720607443426,-508.55,0.00013753,2]
[331657858,1720607443437,-500.0,0.00013753,2]
[331657859,1720607443448,-500.0,0.00013753,2]
[331657861,1720607443458,-544.13,0.00013753,2]
[331657862,1720607443469,-500.0,0.00013753,2]
[331657863,1720607443479,-500.0,0.00013753,2]
[331657864,1720607443489,-544.93,0.00013753,2]
[331657865,1720607443500,-500.0,0.00013753,2]
[331657866,1720607443509,-500.0,0.00013753,2]
[331657867,1720607443519,-500.0,0.00013753,2]